[Event "Israeli Team-ch 2023"]
[Site "Petah Tikva"]
[Date "2023.02.10"]
[Round "7.17"]
[White "Kochavi, Ori"]
[Black "Poleg, Dan"]
[Result "1-0"]
[ECO "A07"]
[WhiteElo "2396"]
[BlackElo "2193"]
[Annotator "TA"]
[PlyCount "91"]
[EventDate "2023.01.13"]
[EventCountry "ISR"]
[SourceTitle "playchess.com"]
[Source "ChessBase"]
[SourceQuality "1"]
[TimeControl "40/5400+30:1800+30"]

{[%evp 9,91,10,17,-5,-10,-5,0,-9,-8,-18,-16,-16,0,0,0,-14,-17,-36,-34,-39,-37,-37,-38,-78,-75,-71,-62,-99,-99,-97,-107,-122,-36,-44,-39,-58,-77,-89,-46,-44,-47,-36,0,-57,-65,-62,-61,-55,-48,-75,0,0,0,-18,0,-78,-83,-95,-53,-60,0,0,14,17,27,8,285,269,368,358,515,521,646,576,575,557,559,524,862,727,29984,29985,29984,29985]} 1. d3 {[%emt 0:06:27]} d5 {[%emt 0:00:29]} 2. Nf3 {[%emt 0:00:52]} Nf6 {[%emt 0:00:12]} 3. g3 {[%emt 0:00:24]} Bg4 {[%emt 0:00:50]} 4. Bg2 {[%emt 0:01:24]} c6 {[%emt 0:01:14]} 5. O-O {[%emt 0:00:10]} Nbd7 {[%emt 0:00:18]} 6. Nc3 {[%emt 0:16:00] A07: Réti Opening: New York and Capablanca Systems.} e5 {[%emt 0:03:21] The main line 6...e5 scores better than 6...e6.} 7. e4 {[%emt 0:00:27]} dxe4 {[%emt 0:02:14]} 8. Nxe4 {[%emt 0:01:22] The position is equal.} Nxe4 {[%emt 0:03:31]} 9. dxe4 {[%emt 0:00:45]} Bc5 {[%emt 0:01:06]} 10. Qe2 {[%emt 0:05:55]} Qe7 {[%emt 0:08:27]} 11. h3 {[%emt 0:04:13]} Bh5 {[%emt 0:03:31][%cal Of7f5]} 12. c3 {[%emt 0:04:22]} a5 {[%emt 0:00:54][%cal Of7f5]} 13. a4 {[%emt 0:02:45]} O-O {[%emt 0:05:28] [#]} 14. g4 $146 {[%emt 0:05:13]} ({Predecessor:} 14. Qc2 Rad8 15. Bg5 f6 16. Bc1 Bf7 17. Nh4 g6 18. Re1 Nb6 19. Bf1 Qe6 20. Kg2 {0-1 Zhukov,M (1902)-Hercegovac,N (2187) Titled Tuesday intern op 26th Jul Early blitz 2022 (6)}) 14... Bg6 {[%emt 0:00:09]} 15. Rd1 {[%emt 0:01:22]} Rfd8 {[%emt 0:02:13]} 16. Nh2 {[%emt 0:06:01]} Nf8 {[%emt 0:03:50][%cal Bd7f8,Bf8e6,Be6c5][%mdl 32]} 17. Be3 {[%emt 0:00:41]} Ne6 {[%emt 0:00:19]} 18. Rxd8+ {[%emt 0:01:39]} Rxd8 {[%emt 0:01:47]} 19. Nf1 {[%emt 0:01:57]} Bxe3 {[%emt 0:05:10]} 20. Qxe3 {[%emt 0:02:11]} Qc5 {[%emt 0:00:08]} ({Better is} 20... h5 $17 {And now ...Nf4 would win.} 21. gxh5 Bxh5) 21. h4 $15 {[%emt 0:01:18] [#] Threatens to win with h5.} f6 {[%emt 0:02:09]} 22. Qxc5 {[%emt 0:03:46]} Nxc5 {[%emt 0:00:07]} 23. b4 {[%emt 0:00:01]} Ne6 {[%emt 0:12:27]} 24. h5 {[%emt 0:07:49]} Bf7 {[%emt 0:00:54]} 25. Ne3 {[%emt 0:00:13]} Rd3 {[%emt 0:16:40]} 26. Rc1 {[%emt 0:01:42]} (26. bxa5 $11 Nc5 27. Rb1) 26... axb4 $1 {[%emt 0:02:12]} 27. cxb4 {[%emt 0:00:02]} Ra3 {[%emt 0:00:18]} 28. a5 {[%emt 0:00:53]} Nd4 {[%emt 0:01:27] [#] Strongly threatening ...Ne2+.} 29. Rb1 {[%emt 0:03:22]} Ne2+ {[%emt 0:01:00]} (29... Kf8 $17) 30. Kh2 $11 {[%emt 0:01:13]} Nc3 {[%emt 0:00:57] Repels Rd1} 31. Rc1 {[%emt 0:01:19]} (31. Rb2 $5 {[%cal Rb2d2]}) 31... Be6 {[%emt 0:00:44]} 32. Bf3 {[%emt 0:06:59]} (32. Nf5 $1 $11 {remains equal.}) 32... Kf8 {[%emt 0:02:06]} 33. Kg2 {[%emt 0:00:03]} Ke8 {[%emt 0:01:25]} 34. h6 {[%emt 0:00:31]} gxh6 {[%emt 0:01:49]} (34... g5 $15) 35. Rh1 {[%emt 0:00:06]} Na2 {[%emt 0:08:54]} 36. Rxh6 {[%emt 0:00:21]} Nxb4 {[%emt 0:00:05]} 37. g5 {[%emt 0:02:18][%cal Bg4g5,Bg5f6][%mdl 32]} Bf7 $2 {[%emt 0:04:39][%mdl 8192] This costs Black the game.} (37... Nd3 $11) 38. gxf6 $18 {[%emt 0:05:48]} ({Worse is} 38. Rxf6 Nd3 $11) 38... Nd3 {[%emt 0:00:06]} 39. Rxh7 {[%emt 0:00:22]} Nf4+ {[%emt 0:01:38]} (39... Kf8 {was called for.} 40. Bg4 Nf4+ 41. Kh2 Ra2) 40. Kh2 {[%emt 0:00:49]} Be6 {[%emt 0:04:52]} 41. Rxb7 {[%emt 0:31:07]} Rxa5 {[%emt 0:30:23]} 42. Bg4 {[%emt 0:02:59]} Kf8 {[%emt 0:00:00]} 43. Re7 {[%emt 0:00:00]} Bxg4 {[%emt 0:00:00]} 44. Nxg4 {[%emt 0:00:00]} Ra3 {[%emt 0:00:00]} 45. Nxe5 {[%emt 0:00:00]} Rh3+ {[%emt 0:00:00]} 46. Kg1 {[%emt 0:00:00] Weighted Error Value: White=0.14 (very precise) /Black=0.55} 1-0

[Event "Israeli Team-ch 2023"]
[Site "Petah Tikva"]
[Date "2023.02.10"]
[Round "7.19"]
[White "Soffer, Ram"]
[Black "Nabaty, Tamir"]
[Result "0-1"]
[ECO "C82"]
[WhiteElo "2475"]
[BlackElo "2632"]
[Annotator "TA"]
[PlyCount "72"]
[EventDate "2023.01.13"]
[EventCountry "ISR"]
[SourceTitle "playchess.com"]
[Source "ChessBase"]
[SourceQuality "1"]
[TimeControl "40/5400+30:1800+30"]

{[%evp 23,72,0,0,0,0,0,0,0,15,0,107,125,114,-32,-25,-14,-19,-26,-35,-43,-23,-93,-18,-527,-500,-476,-475,-469,-482,-482,-462,-459,-361,-1776,-1722,-1635,-1431,-1599,-1599,-1497,-1050,-29961,-11452,-5118,-5118,-29973,-5122,-29994,-29995,-29995,-29995]} 1. e4 {[%emt 0:00:10]} e5 {[%emt 0:00:24]} 2. Nf3 {[%emt 0:00:06]} Nc6 {[%emt 0:00:10]} 3. Bb5 {[%emt 0:00:08]} a6 {[%emt 0:00:10]} 4. Ba4 {[%emt 0:00:04]} Nf6 {[%emt 0:00:14]} 5. O-O {[%emt 0:00:06]} Nxe4 {[%emt 0:00:18]} 6. d4 {[%emt 0:00:06]} b5 {[%emt 0:00:10]} 7. Bb3 {[%emt 0:00:04]} d5 {[%emt 0:00:09]} 8. dxe5 {[%emt 0:00:04]} Be6 {[%emt 0:00:08]} 9. c3 {[%emt 0:00:13]} Bc5 {[%emt 0:00:21]} 10. Nbd2 {[%emt 1:34:29]} O-O {[%emt 0:00:36]} 11. Bc2 {[%emt 0:00:00]} Nxf2 {[%emt 0:00:41]} 12. Rxf2 {[%emt 0:00:00]} f6 {[%emt 0:00:12][%cal Bf7f6,Bf6e5,Be5e4][%mdl 32]} 13. Nf1 {[%emt 0:00:00] Hoping for Be3. C82: Open Ruy Lopez: 9 c3 without 9...Be7.} Bxf2+ {[%emt 0:01:35]} 14. Kxf2 {[%emt 0:00:00]} fxe5 {[%emt 0:01:41]} 15. Kg1 {[%emt 0:00:00][%cal Oc2h7] The position is equal.} Qd6 {[%emt 0:04:04]} 16. Be3 {[%emt 0:00:00][%mdl 1024] White has compensation.} Bg4 $5 {[%emt 0:20:17][%mdl 4] [#] A promising side line.} (16... h6 $11) 17. Bxh7+ $1 $16 {[%emt 0:00:00][%mdl 576] Decoy. This pair of bishops is nice.} Kh8 {[%emt 0:00:10] [#]} 18. Bc2 $146 {[%emt 0:00:00]} ({Only move:} 18. Qe1 $1 $16 {[%cal Re1h4] Qh4 is the strong threat.} Kxh7 19. Qh4+ Kg8 20. Qxg4) ({Predecessor:} 18. Qe1 Qf6 19. Ng5 g6 20. Qh4 Bh5 21. Ng3 d4 22. Nxh5 gxh5 23. Qxh5 Kg7 24. Be4 Qh6 25. Ne6+ {1-0 Motylev,A (2632)-Dushyant,S (2416) Biel HTO 55th 2022 (2)}) 18... e4 $15 {[%emt 0:04:47]} 19. Qe1 $1 {[%emt 0:00:00] Qh4+ would be deadly.} Bxf3 {[%emt 0:02:10]} (19... exf3 $2 20. Qh4+ Kg8 21. Bh7+ (21. Qxg4 Ne5 $16) 21... Kf7 22. Qxg4 $18) 20. Qh4+ {[%emt 0:00:00]} Kg8 {[%emt 0:00:11]} 21. gxf3 {[%emt 0:00:00]} Ne5 $36 {[%emt 0:06:32][%mdl 2048] Black is pushing. Some like it hot} 22. Qh5 {[%emt 0:00:00]} (22. Nd2 $11 {keeps the balance.} Rxf3 23. Re1) 22... Rxf3 {[%emt 0:02:22] Black is more active.} (22... exf3 $2 {leads to mate.} 23. Bh7+ Kh8 24. Bg6+ Kg8 25. Qh7#) ({Better is} 22... Nxf3+ $17 23. Kh1 Qe6) 23. Rd1 $2 {[%emt 0:00:00][%mdl 8192] This move loses the game for White.} (23. Bd4 $11 {and White is okay.} Ng6 24. Kh1) 23... Raf8 $19 {[%emt 0:04:34] Strongly threatening ...Qf6.} 24. Bxe4 {[%emt 0:00:00]} dxe4 {[%emt 0:10:23]} 25. Rxd6 {[%emt 0:00:00]} Rxf1+ {[%emt 0:00:08]} (25... cxd6 $2 {loses.} 26. Ng3 Rxe3 27. Kg2 $19) 26. Kg2 {[%emt 0:00:00]} cxd6 {[%emt 0:00:17]} 27. Qe2 {[%emt 0:00:00]} Nd3 {[%emt 0:03:53]} 28. Qh5 $2 {[%emt 0:00:00]} (28. Qxf1 Rxf1 29. Kxf1) 28... Ne1+ {[%emt 0:02:04]} ({Not} 28... Nxb2 29. Qg4 $17) 29. Kh3 {[%emt 0:00:00]} R1f3+ {[%emt 0:02:25]} 30. Kg4 {[%emt 0:00:00]} Rxe3 {[%emt 0:00:59]} 31. Qd5+ {[%emt 0:00:00]} Rf7 {[%emt 0:00:06]} 32. Qa8+ {[%emt 0:00:00]} Kh7 {[%emt 0:00:19]} 33. Qd5 {[%emt 0:00:00] [#]} Nd3 $1 {[%emt 0:00:39] ( -> ...Nf2+)} 34. Kg5 {[%emt 0:00:00]} (34. Qxf7 Ne5+) 34... Ref3 {[%emt 0:01:44]} (34... Rf6 $142 35. Qd4 Re2 36. Qxf6 gxf6+ 37. Kf5 Nxb2 38. Ke6 e3 39. Kf7 Rg2 40. Kxf6 e2 41. Ke6 Nc4 42. Ke7 e1=Q+ {[%mdl 64] Discovered Attack} 43. Kd7 Rg7+ 44. Kd8 Qe7+ 45. Kc8 Rg8#) 35. Qxd6 {[%emt 0:00:00]} R7f5+ {[%emt 0:00:29]} 36. Kh4 {[%emt 0:00:00]} Nf2 {[%emt 0:00:15] A cool game by Nabaty.   Weighted Error Value: White=0.96/Black=0.21 (precise)} 0-1

[Event "Israeli Team-ch 2023"]
[Site "Petah Tikva"]
[Date "2023.02.10"]
[Round "7.20"]
[White "Roiz, Michael"]
[Black "Bakalchuk, Johnatan"]
[Result "1/2-1/2"]
[ECO "E94"]
[WhiteElo "2577"]
[BlackElo "2442"]
[Annotator "TA"]
[PlyCount "33"]
[EventDate "2023.01.13"]
[EventCountry "ISR"]
[SourceTitle "playchess.com"]
[Source "ChessBase"]
[SourceQuality "1"]
[TimeControl "40/5400+30:1800+30"]

{[%evp 16,33,52,43,38,48,63,57,58,72,71,69,62,-6,-5,-6,-7,-26,0,0]} 1. d4 {[%emt 0:00:03]} Nf6 {[%emt 0:00:26]} 2. c4 {[%emt 0:00:05]} g6 {[%emt 0:00:05]} 3. Nc3 {[%emt 0:00:03]} Bg7 {[%emt 0:00:04]} 4. e4 {[%emt 0:00:04]} d6 {[%emt 0:00:06]} 5. Be2 {[%emt 0:00:03]} O-O {[%emt 0:00:07]} 6. Nf3 {[%emt 0:00:04]} Na6 {[%emt 0:06:16]} 7. O-O {[%emt 0:00:29]} e5 {[%emt 0:00:06]} 8. Re1 {[%emt 0:00:13]} c6 {[%emt 0:01:21]} 9. Be3 {[%emt 0:00:41]} exd4 {[%emt 0:05:08] E94: King's Indian: Classical: 6 Be2 e5 7 0-0: Various Black 7th moves.} 10. Nxd4 {[%emt 0:01:42] 10.Bxd4 is vanishing.} (10. Qxd4 Ng4 11. Qd2 Nxe3 12. Qxe3 Qb6 $15) 10... Re8 {[%emt 0:00:49]} 11. f3 $1 {[%emt 0:00:26]} d5 {[%emt 0:13:41] White is slightly better.} 12. cxd5 {[%emt 0:02:41]} Nxd5 {[%emt 0:09:18]} 13. Nxd5 {[%emt 0:14:39]} ({Much weaker is} 13. exd5 Rxe3 14. Qd2 Qb6 $11) 13... cxd5 {[%emt 0:00:23]} 14. Bb5 {[%emt 0:15:14]} ({Better is} 14. Bxa6 $1 $14 bxa6 15. Nc6) 14... Bd7 $11 {[%emt 0:00:52] Hoping for ...Bxd4.} 15. Bxa6 {[%emt 0:00:42]} (15. exd5 $2 {is the wrong capture.} Rxe3 16. Rxe3 Qb6 $19) 15... bxa6 {[%emt 0:00:08]} 16. exd5 {[%emt 0:00:05] [#]} Qf6 $146 {[%emt 0:11:56][%cal Oe8e3] [#] ...Rxe3! would be deadly.} (16... Qh4 $5 {[%cal Re8e3]} 17. Nc6 Bxb2 $11) ({Predecessor:} 16... Qh4 17. f4 Qf6 18. Bf2 Qxf4 19. Qf3 Qd2 20. Nc6 Qxb2 21. d6 Kh8 22. Rad1 Rxe1+ 23. Rxe1 {0-1 Kusa,J (2368)-Pultinevicius,P (2524) Teplice op 15th 2022 (8)}) 17. Bf2 {[%emt 0:12:36] Weighted Error Value: White=0.20 (precise) /Black=0.10 (very precise)} 1/2-1/2

[Event "Israeli Team-ch 2023"]
[Site "Petah Tikva"]
[Date "2023.02.10"]
[Round "7.21"]
[White "Mesropov, Konstantin"]
[Black "Mikhalevski, Victor"]
[Result "0-1"]
[ECO "C58"]
[WhiteElo "2437"]
[BlackElo "2516"]
[Annotator "TA"]
[PlyCount "98"]
[EventDate "2023.01.13"]
[EventCountry "ISR"]
[SourceTitle "playchess.com"]
[Source "ChessBase"]
[SourceQuality "1"]
[TimeControl "40/5400+30:1800+30"]

{[%evp 14,98,38,35,38,42,55,0,29,28,50,33,40,33,27,2,17,6,2,-43,0,0,41,0,0,-8,-13,-23,0,-35,-24,-128,-111,-117,-92,-104,0,-241,-240,-241,-187,-170,-195,-294,-285,-260,-240,-244,-246,-245,-212,-231,-218,-225,-235,-232,-234,-229,-228,-226,-212,-216,-218,-255,-255,-252,-223,-541,-538,-516,-515,-616,-599,-1769,-1561,-1493,-1066,-1249,-1206,-5619,-5265,-6103,-6103,-29992,-29981,-29990,-29978]} 1. e4 {[%emt 0:00:08]} e5 {[%emt 0:00:14]} 2. Nf3 {[%emt 0:02:26]} Nc6 {[%emt 0:00:07]} 3. Bc4 {[%emt 0:01:26]} Nf6 {[%emt 0:00:12]} 4. Ng5 {[%emt 0:01:42]} d5 {[%emt 0:00:07]} 5. exd5 {[%emt 0:00:05]} Na5 {[%emt 0:00:03]} 6. Bb5+ {[%emt 0:00:28]} c6 {[%emt 0:00:06]} 7. dxc6 {[%emt 0:00:09]} bxc6 {[%emt 0:00:05]} 8. Bd3 {[%emt 0:00:17]} Nd5 {[%emt 0:00:40] C58: Two Knights: 4 Ng5 d5 5 exd5 Na5 sidelines.} 9. h4 {[%emt 0:04:00]} ({And not} 9. Qh5 g6 10. Nxf7 gxh5 $17) 9... Be7 {[%emt 0:09:25] 9...Qc7 is setting a new trend.} 10. Nc3 {[%emt 0:20:27]} (10. Qf3 $14 Nf6 11. Nc3) 10... Nf4 {[%emt 0:23:47] The position is equal.} (10... h6 $5 {[%cal Rh6g5]} 11. Nf3 Bd6 $11) 11. Bf1 {[%emt 0:01:19][%cal Od2d4] [#]} f6 $146 {[%emt 0:00:43]} ({Predecessor:} 11... h6 12. Nf3 Bg4 13. d3 O-O 14. g3 Ne6 15. Be2 Bd6 16. h5 Rb8 17. Nh4 Bxe2 18. Nxe2 {1-0 Fedoseev,V (2687)-Deepan Chakkravarthy,J (2535) Titled Tuesday intern op 09th Feb blitz 2021 (3)}) 12. Nf3 {[%emt 0:09:20]} c5 {[%emt 0:03:23]} 13. d3 {[%emt 0:08:07]} Ne6 {[%emt 0:03:06]} 14. Be2 {[%emt 0:14:48]} Bb7 {[%emt 0:05:51]} 15. Ne4 {[%emt 0:01:49]} O-O {[%emt 0:07:55]} 16. c3 {[%emt 0:02:58]} Qd7 {[%emt 0:05:52][%mdl 1024] Black has compensation.} 17. Qc2 {[%emt 0:00:52]} Rac8 {[%emt 0:03:05]} 18. b3 {[%emt 0:05:33]} h6 {[%emt 0:01:45]} 19. h5 {[%emt 0:02:50]} f5 {[%emt 0:01:14]} 20. Nxe5 {[%emt 0:02:23]} Qc7 {[%emt 0:00:41]} (20... Qd5 $5 {[%cal Rd5e5]} 21. Ng6 Rfe8 $11) 21. Ng6 {[%emt 0:00:33]} fxe4 {[%emt 0:00:44]} 22. Bg4 {[%emt 0:08:46]} (22. dxe4 $11 {keeps the balance.} Rfe8 23. Bg4) 22... Rf6 $17 {[%emt 0:02:29]} 23. dxe4 {[%emt 0:00:33]} Re8 $36 {[%emt 0:01:27][%mdl 2048] Black is really pushing.} 24. O-O {[%emt 0:02:48]} Nf8 {[%emt 0:04:51]} ({Black should try} 24... Bd6 $17 {...Nc6 would be deadly.} 25. Bf5 Nf8) 25. f4 $2 {[%emt 0:02:01] Black converts the advantage convincingly.} (25. e5 $1 $11 {and White has nothing to worry.} Rxg6 26. hxg6 Qxe5 27. Qf5) 25... Nxg6 $19 {[%emt 0:03:39]} 26. hxg6 {[%emt 0:00:07]} c4 {[%emt 0:00:09]} ({Inferior is} 26... Rxg6 27. Bh5 Qb6 28. Be3 $17) 27. e5 {[%emt 0:05:49]} Bc5+ {[%emt 0:02:14]} 28. Kh2 {[%emt 0:00:10]} (28. Kh1 {was forced.} Rxe5 {[%mdl 64] Pin} 29. Ba3) 28... Rxe5 {[%emt 0:00:09]} 29. b4 {[%emt 0:01:29]} Rg5 {[%emt 0:00:55]} 30. Bh3 {[%emt 0:01:32]} Rfxg6 {[%emt 0:14:07][%cal Ob7g2] [#] Threatens to win with ...Bxg2!} 31. bxc5 {[%emt 0:00:10] Rf2 is the strong threat.} Bxg2 {[%emt 0:01:04]} 32. Bxg2 {[%emt 0:00:06]} Rxg2+ {[%emt 0:00:17]} 33. Qxg2 {[%emt 0:00:02]} Rxg2+ {[%emt 0:00:06]} 34. Kxg2 {[%emt 0:00:04]} Qxc5 {[%emt 0:00:05]} 35. Rf3 {[%emt 0:01:16]} Nc6 {[%emt 0:07:23]} 36. Be3 {[%emt 0:00:25]} Qd5 {[%emt 0:00:00]} 37. Re1 {[%emt 0:00:32]} Ne7 {[%emt 0:00:00]} 38. Bxa7 {[%emt 0:01:26]} Ng6 {[%emt 0:00:00]} 39. Kg3 {[%emt 0:01:04] Inhibits Nh4.} Nh4 {[%emt 0:00:00][%mdl 64] [#] Deflection} (39... Qh5 $2 40. Ref1 $19) 40. Rf2 {[%emt 0:00:30]} (40. Ref1 {is tougher.} Nxf3 41. Rxf3) 40... Nf5+ {[%emt 0:00:00]} ({Don't blunder} 40... Qh5 $2 41. Bd4 $19) 41. Kh2 {[%emt 0:01:20]} Qa5 {[%emt 0:00:00][%csl LRa7,LRc3]} 42. Bb8 {[%emt 0:08:16]} Qxc3 {[%emt 0:00:46]} 43. Re8+ {[%emt 0:06:22]} Kf7 {[%emt 0:04:29]} 44. Rfe2 {[%emt 0:00:27]} Qg3+ {[%emt 0:00:09]} 45. Kh1 {[%emt 0:00:01]} c3 {[%emt 0:00:13][%cal Bc4c3,Bc3c2][%mdl 32] Hoping for ...Qd3.} 46. R8e5 {[%emt 0:02:01]} Qd3 {[%emt 0:00:59]} (46... Qxf4 $2 47. Re7+ Nxe7 48. Bxf4 $18) 47. Re1 {[%emt 0:02:58]} c2 {[%emt 0:01:20] ( -> ...Qf3+)} 48. a4 {[%emt 0:03:24]} Nh4 {[%emt 0:03:57]} 49. Re7+ {[%emt 0:01:59]} Kg8 {[%emt 0:00:07] An entertaining game by Mikhalevski.   Weighted Error Value: White=0.88/Black=0.10 (very precise)} 0-1

[Event "Israeli Team-ch 2023"]
[Site "Petah Tikva"]
[Date "2023.02.10"]
[Round "7.22"]
[White "Kobo, Ori"]
[Black "Karp, Ilya"]
[Result "1-0"]
[ECO "B23"]
[WhiteElo "2546"]
[BlackElo "2392"]
[Annotator "TA"]
[PlyCount "81"]
[EventDate "2023.01.13"]
[EventCountry "ISR"]
[SourceTitle "playchess.com"]
[Source "ChessBase"]
[SourceQuality "1"]
[TimeControl "40/5400+30:1800+30"]

{[%evp 16,81,49,33,33,35,41,27,14,43,126,133,117,10,22,34,39,0,22,14,35,14,111,63,182,116,108,23,40,0,0,0,0,0,0,0,120,101,123,108,109,108,201,179,306,123,123,135,116,64,69,68,211,190,431,430,1266,1191,1793,1795,29980,75,75,0,29980,29981,29981,29980]} 1. e4 {[%emt 0:00:12]} c5 {[%emt 0:01:04]} 2. Nc3 {[%emt 0:00:43]} Nc6 {[%emt 0:00:58]} 3. Bb5 {[%emt 0:00:10]} Nd4 {[%emt 0:02:09]} 4. Nf3 {[%emt 0:00:17]} g6 {[%emt 0:04:41]} 5. Bc4 {[%emt 0:00:31]} Bg7 {[%emt 0:00:17]} 6. Nxd4 {[%emt 0:00:33]} cxd4 {[%emt 0:00:04]} 7. Qf3 {[%emt 0:00:10]} Nh6 {[%emt 0:00:12]} 8. Ne2 {[%emt 0:01:03]} O-O {[%emt 0:00:04]} 9. d3 {[%emt 0:00:21][%cal Oe2d4]} Ng4 {[%emt 0:01:10] B23: Closed Sicilian: Lines without g3.} 10. Bb3 {[%emt 0:01:13]} (10. Qxg4 d5 11. Qf3 dxc4 $15) 10... d6 {[%emt 0:05:24]} 11. Qg3 {[%emt 0:02:47]} a5 {[%emt 0:08:50] White has an edge.} 12. a4 {[%emt 0:03:04]} b5 {[%emt 0:00:19] [#]} 13. axb5 $146 {[%emt 0:13:36]} ({Predecessor:} 13. h4 bxa4 14. Bd5 Ra7 15. h5 e6 16. Bc6 Qb6 17. Bxa4 Nf6 18. h6 Bh8 19. O-O {1-0 Lapinski,K (2175)-Szczukiewicz,A (2102) Kochan Memorial op-A 18th 2007 (4)}) 13... Qb6 {[%emt 0:00:53]} 14. h4 {[%emt 0:05:18]} (14. h3 $16 Nf6 15. c4) 14... Qxb5 $11 {[%emt 0:16:01] [#]} 15. h5 $1 {[%emt 0:02:57] Threatens to win with hxg6.} g5 {[%emt 0:01:45]} (15... gxh5 $2 16. Nf4 $18) 16. Bd5 {[%emt 0:18:09]} (16. O-O {simplifies} Qc5 17. h6 Bxh6 18. Ra4) 16... Qb4+ {[%emt 0:01:41]} (16... Be5 $5 {[%cal Re5g3]} 17. f4 gxf4 18. Bxf4 Qb4+ 19. Kd1 Bxf4 20. Nxf4 Qxb2 $14) 17. Bd2 {[%emt 0:01:14]} Qxb2 {[%emt 0:00:09]} 18. O-O {[%emt 0:00:20]} Ra7 {[%emt 0:06:23]} (18... Be5 $1 $11 19. f4 gxf4 20. Bxf4 Rb8) 19. Bb3 {[%emt 0:04:28]} (19. Bxg5 $16 h6 20. Bd2) 19... Rb7 {[%emt 0:08:16]} (19... Be5 $14 20. f4 gxf4 21. Nxf4 Rb7) 20. Ra2 {[%emt 0:08:03]} (20. Bxg5 $6 Rxb3 21. cxb3 f6 $16) (20. Rfb1 $18 Rxb3 21. Rxb2 Rxb2 22. Bxg5 (22. Rxa5 Be5 $11)) 20... Be5 $16 {[%emt 0:08:17] White must now prevent ...Qxa2.} (20... Rxb3 $2 21. Rxb2 Rxb2 22. Bxg5 Rxc2 23. Re1 $18) 21. f4 {[%emt 0:01:50]} ({White should play} 21. Rxb2 $16 Bxg3 22. Nxg3 (22. fxg3 a4 $14)) 21... gxf4 $11 {[%emt 0:00:04]} 22. Qe1 {[%emt 0:09:51]} (22. Bxf4 Rxb3 23. Rxb2 Rxb2 $17) (22. Qh4 $5 Bf6 23. Qe1 (23. Rxb2 $2 Bxh4 24. Ra2 e5 $19) (23. Qxf6 Nxf6 24. Rxb2 a4 $11) 23... Rxb3 24. Rxb2 Rxb2 25. Qc1 $11) 22... Rxb3 {[%emt 0:01:12]} 23. Rxb2 {[%emt 0:00:09]} Rxb2 {[%emt 0:00:03]} 24. Qc1 $36 {[%emt 0:00:14][%mdl 2048] White is pushing.} Rb5 {[%emt 0:04:09]} 25. Bxf4 {[%emt 0:04:05]} f6 {[%emt 0:06:46]} (25... Bf6 $11) 26. Qa1 {[%emt 0:05:45]} Kf7 {[%emt 0:10:25]} 27. Nxd4 {[%emt 0:03:09]} Bxd4+ {[%emt 0:00:04]} 28. Qxd4 {[%emt 0:00:05] Strongly threatening Qc4+.} Rxh5 {[%emt 0:00:01] [#]} (28... Be6 $16 {keeps fighting.} 29. c4 Rxh5) 29. Qa7 $1 $18 {[%emt 0:03:00]} Rd8 {[%emt 0:02:10] [#]} (29... Rb5 $142 30. c4 (30. Bxd6 Rb7 $11) 30... Rb2 31. Qxa5 (31. Bxd6 Rb7 $15) 31... Rg8) 30. Rb1 {[%emt 0:02:53]} ({Much less strong is} 30. Qc7 $6 Ke8 31. d4 Bd7 $18) (30. d4 $1 $18 {and the rest is easy.}) 30... Rd7 $16 {[%emt 0:01:53]} 31. Qb8 {[%emt 0:02:31][%mdl 1024] White has strong compensation. Dancing on a razor blade.} Rc5 {[%emt 0:01:35]} 32. d4 {[%emt 0:02:01]} (32. c4 $16) 32... Rc4 $14 {[%emt 0:02:43]} 33. Qb5 {[%emt 0:03:16]} d5 {[%emt 0:00:01]} (33... Rdc7 $1 $14) 34. Rd1 {[%emt 0:01:16]} ({Inferior is} 34. Qxa5 Rxd4 35. Bg3 e5 $11) (34. exd5 $2 Rb7 35. Qxb7 Bxb7 36. Rxb7 Rxd4 $19) 34... Rxc2 $2 {[%emt 0:02:09]} (34... e6 35. Qxa5 Kg6) 35. Qd3 $18 {[%emt 0:00:48]} Rb2 {[%emt 0:04:18]} (35... Rdc7 $142 36. exd5 f5 37. Bxc7 Rxc7) 36. Qh3 {[%emt 0:00:54][%csl LRg4,LRh7]} Rd8 {[%emt 0:00:41]} 37. Qxh7+ {[%emt 0:00:19]} Ke6 {[%emt 0:00:02]} 38. Qf5+ $2 {[%emt 0:00:17]} (38. Re1 {mates} Ne5 39. dxe5 d4 40. exf6 exf6 41. Qc7 {[%mdl 64] Deflection} Rd7 42. Qxc8 d3 43. Qc6+ Ke7 44. e5) 38... Kf7 $16 {[%emt 0:00:03]} 39. Qh7+ {[%emt 0:00:09][%mdl 8192]} (39. Qh5+ $16 Kg7 40. e5 (40. exd5 $2 {loses.} Rh8 $19)) 39... Ke6 {[%emt 0:00:01]} 40. Re1 {[%emt 0:01:55] Dodges Re2} Kd7 {[%emt 0:02:31]} 41. exd5 {[%emt 0:03:31] Artfully played by Kobo.   Weighted Error Value: White=0.40/Black=0.60} 1-0